[Event "Titled Tuesday Blitz September 28 2021"]
[White "Jobava, Baadur"]
[Black "Pires, Marcos Vinicius Torsani"]
[WhiteFideId "13601520"]
[BlackFideId "2118939"]
[WhiteElo "2731"]
[BlackElo "2273"]
[Result "1-0"]
[Round "03"]
[TimeControl "180+1"]
[Date "2021.09.28"]
[WhiteClock "0:00:26"]
[BlackClock "0:00:05"]

1. d4 {[%clk 0:03:00]}  d5 {[%clk 0:02:55]} 2. Nc3 {[%clk 0:03:01]}  Nf6 {[%clk 0:02:48]} 3. Bf4 {[%clk 0:03:01]}  e6 {[%clk 0:02:48]} 4. Nb5 {[%clk 0:03:00]}  Na6 {[%clk 0:02:47]} 5. e3 {[%clk 0:03:00]}  Be7 {[%clk 0:02:46]} 6. Nf3 {[%clk 0:02:57]}  O-O {[%clk 0:02:45]} 7. h3 {[%clk 0:02:58]}  c6 {[%clk 0:02:41]} 8. Nc3 {[%clk 0:02:58]}  c5 {[%clk 0:02:36]} 9. a3 {[%clk 0:02:57]}  Bd6 {[%clk 0:02:33]} 10. Bg5 {[%clk 0:02:51]}  Nb8 {[%clk 0:02:27]} 11. dxc5 {[%clk 0:02:49]}  Bxc5 {[%clk 0:02:27]} 12. Bd3 {[%clk 0:02:50]}  Nc6 {[%clk 0:02:23]} 13. O-O {[%clk 0:02:47]}  h6 {[%clk 0:02:23]} 14. Bh4 {[%clk 0:02:44]}  Be7 {[%clk 0:02:22]} 15. Re1 {[%clk 0:02:43]}  b6 {[%clk 0:02:15]} 16. e4 {[%clk 0:02:43]}  dxe4 {[%clk 0:02:12]} 17. Nxe4 {[%clk 0:02:43]}  Bb7 {[%clk 0:02:12]} 18. Bxf6 {[%clk 0:02:40]}  Bxf6 {[%clk 0:02:13]} 19. c3 {[%clk 0:02:41]}  Qe7 {[%clk 0:01:49]} 20. Qe2 {[%clk 0:02:37]}  Rfd8 {[%clk 0:01:47]} 21. Rad1 {[%clk 0:02:37]}  g6 {[%clk 0:01:39]} 22. Nxf6+ {[%clk 0:02:33]}  Qxf6 {[%clk 0:01:40]} 23. Be4 {[%clk 0:02:34]}  Na5 {[%clk 0:01:34]} 24. b4 {[%clk 0:02:30]}  Nc6 {[%clk 0:01:24]} 25. Qe3 {[%clk 0:02:26]}  Kg7 {[%clk 0:01:21]} 26. c4 {[%clk 0:02:26]}  Rxd1 {[%clk 0:01:18]} 27. Rxd1 {[%clk 0:02:26]}  Rd8 {[%clk 0:01:18]} 28. Rxd8 {[%clk 0:02:26]}  Nxd8 {[%clk 0:01:19]} 29. Bxb7 {[%clk 0:02:18]}  Nxb7 {[%clk 0:01:20]} 30. Ne5 {[%clk 0:02:19]}  Nd6 {[%clk 0:01:12]} 31. c5 {[%clk 0:02:15]}  bxc5 {[%clk 0:01:10]} 32. bxc5 {[%clk 0:02:16]}  Nf5 {[%clk 0:01:10]} 33. Qe4 {[%clk 0:02:03]}  Qd8 {[%clk 0:01:10]} 34. Qb7 {[%clk 0:01:51]}  Qe7 {[%clk 0:00:44]} 35. c6 {[%clk 0:01:48]}  Kf6 {[%clk 0:00:44]} 36. Qb2 {[%clk 0:01:38]}  Qc7 {[%clk 0:00:39]} 37. Nd7+ {[%clk 0:01:11]}  Kg5 {[%clk 0:00:19]} 38. Qf6+ {[%clk 0:01:12]}  Kf4 {[%clk 0:00:15]} 39. Qc3 {[%clk 0:00:51]}  e5 {[%clk 0:00:11]} 40. g3+ {[%clk 0:00:42]}  Kg5 {[%clk 0:00:11]} 41. h4+ {[%clk 0:00:40]}  Kg4 {[%clk 0:00:10]} 42. Nxe5+ {[%clk 0:00:35]}  Kh3 {[%clk 0:00:10]} 43. g4+ {[%clk 0:00:33]}  Kxh4 {[%clk 0:00:09]} 44. gxf5 {[%clk 0:00:33]}  gxf5 {[%clk 0:00:07]} 45. Qg3+ {[%clk 0:00:31]}  Kh5 {[%clk 0:00:07]} 46. f4 {[%clk 0:00:26]}  Qe7 {[%clk 0:00:05]} 47. Qh3+ {[%clk 0:00:26]} 1-0


[Site "https://www.chess.com"]

[Event "Titled Tuesday Blitz September 28 2021"]
[White "Kotepalli, Sai Nirupama"]
[Black "Solon, Nathan"]
[WhiteFideId "5039444"]
[BlackFideId "2017229"]
[WhiteElo "2442"]
[BlackElo "2668"]
[Result "0-1"]
[Round "03"]
[TimeControl "180+1"]
[Date "2021.09.28"]
[WhiteClock "0:01:14"]
[BlackClock "0:00:54"]

1. e4 {[%clk 0:02:43]}  c6 {[%clk 0:03:00]} 2. d3 {[%clk 0:02:42]}  d5 {[%clk 0:03:01]} 3. Nd2 {[%clk 0:02:41]}  e5 {[%clk 0:03:00]} 4. Ngf3 {[%clk 0:02:40]}  Bd6 {[%clk 0:03:00]} 5. g3 {[%clk 0:02:40]}  Nf6 {[%clk 0:03:00]} 6. Bg2 {[%clk 0:02:40]}  O-O {[%clk 0:02:59]} 7. O-O {[%clk 0:02:39]}  Re8 {[%clk 0:02:54]} 8. Re1 {[%clk 0:02:38]}  Nbd7 {[%clk 0:02:53]} 9. h4 {[%clk 0:02:36]}  h6 {[%clk 0:02:48]} 10. Nf1 {[%clk 0:02:29]}  dxe4 {[%clk 0:02:45]} 11. dxe4 {[%clk 0:02:28]}  Nc5 {[%clk 0:02:45]} 12. N3d2 {[%clk 0:02:25]}  Bg4 {[%clk 0:02:27]} 13. Bf3 {[%clk 0:02:23]}  Be6 {[%clk 0:02:21]} 14. Ne3 {[%clk 0:02:20]}  Qc7 {[%clk 0:02:14]} 15. Qe2 {[%clk 0:02:20]}  Rad8 {[%clk 0:02:11]} 16. Nf5 {[%clk 0:02:18]}  Bxf5 {[%clk 0:02:06]} 17. exf5 {[%clk 0:02:19]}  e4 {[%clk 0:02:07]} 18. Bg2 {[%clk 0:02:07]}  e3 {[%clk 0:02:07]} 19. Nf1 {[%clk 0:02:01]}  exf2+ {[%clk 0:02:00]} 20. Qxf2 {[%clk 0:02:02]}  Nce4 {[%clk 0:01:57]} 21. Bxe4 {[%clk 0:02:00]}  Nxe4 {[%clk 0:01:58]} 22. Qf3 {[%clk 0:01:55]}  Nxg3 {[%clk 0:01:53]} 23. Rxe8+ {[%clk 0:01:52]}  Rxe8 {[%clk 0:01:54]} 24. Be3 {[%clk 0:01:46]}  Ne4 {[%clk 0:01:25]} 25. Kg2 {[%clk 0:01:42]}  Qe7 {[%clk 0:01:10]} 26. Qg4 {[%clk 0:01:35]}  Nf6 {[%clk 0:01:07]} 27. Qf3 {[%clk 0:01:35]}  Qe4 {[%clk 0:01:01]} 28. Bf2 {[%clk 0:01:30]}  Qxc2 {[%clk 0:00:58]} 29. Qb3 {[%clk 0:01:14]}  Qxf5 {[%clk 0:00:54]} 0-1


[Site "https://www.chess.com"]

[Event "Titled Tuesday Blitz September 28 2021"]
[White "Kovalev, Vladislav"]
[Black "Skatchkov, Valery"]
[WhiteFideId "13504398"]
[BlackFideId "24195812"]
[WhiteElo "2813"]
[BlackElo "2580"]
[Result "1-0"]
[Round "03"]
[TimeControl "180+1"]
[Date "2021.09.28"]
[WhiteClock "0:00:09"]
[BlackClock "0:00:04"]

1. e4 {[%clk 0:03:00]}  e5 {[%clk 0:03:00]} 2. Nf3 {[%clk 0:03:01]}  Nf6 {[%clk 0:03:00]} 3. Nxe5 {[%clk 0:02:57]}  d6 {[%clk 0:03:00]} 4. Nf3 {[%clk 0:02:53]}  Nxe4 {[%clk 0:03:00]} 5. Bd3 {[%clk 0:02:53]}  Nf6 {[%clk 0:02:57]} 6. O-O {[%clk 0:02:53]}  Be7 {[%clk 0:02:56]} 7. c3 {[%clk 0:02:50]}  O-O {[%clk 0:02:56]} 8. Bc2 {[%clk 0:02:50]}  Bg4 {[%clk 0:02:55]} 9. d4 {[%clk 0:02:50]}  c6 {[%clk 0:02:54]} 10. Nbd2 {[%clk 0:02:50]}  Re8 {[%clk 0:02:49]} 11. Re1 {[%clk 0:02:47]}  Nbd7 {[%clk 0:02:45]} 12. Nf1 {[%clk 0:02:47]}  Bf8 {[%clk 0:02:38]} 13. Rxe8 {[%clk 0:02:46]}  Qxe8 {[%clk 0:02:39]} 14. Ng3 {[%clk 0:02:46]}  Bxf3 {[%clk 0:02:26]} 15. Qxf3 {[%clk 0:02:44]}  Qe1+ {[%clk 0:02:25]} 16. Nf1 {[%clk 0:02:45]}  Re8 {[%clk 0:02:23]} 17. Rb1 {[%clk 0:02:31]}  Qe6 {[%clk 0:02:09]} 18. Bb3 {[%clk 0:02:11]}  d5 {[%clk 0:02:06]} 19. Bc2 {[%clk 0:02:05]}  Ne4 {[%clk 0:02:04]} 20. Be3 {[%clk 0:01:57]}  Bd6 {[%clk 0:01:42]} 21. Re1 {[%clk 0:01:55]}  Ndf6 {[%clk 0:01:19]} 22. h3 {[%clk 0:01:23]}  h6 {[%clk 0:01:19]} 23. g3 {[%clk 0:00:54]}  Qxh3 {[%clk 0:01:06]} 24. Qg2 {[%clk 0:00:54]}  Qh5 {[%clk 0:00:52]} 25. Bd1 {[%clk 0:00:40]}  Qg6 {[%clk 0:00:47]} 26. Bc1 {[%clk 0:00:38]}  Nd7 {[%clk 0:00:26]} 27. f3 {[%clk 0:00:36]}  Nef6 {[%clk 0:00:26]} 28. Bc2 {[%clk 0:00:28]}  Qh5 {[%clk 0:00:25]} 29. Rxe8+ {[%clk 0:00:28]}  Nxe8 {[%clk 0:00:26]} 30. Qe2 {[%clk 0:00:23]}  Nef6 {[%clk 0:00:25]} 31. Kg2 {[%clk 0:00:21]}  Nf8 {[%clk 0:00:07]} 32. Ne3 {[%clk 0:00:22]}  Ne6 {[%clk 0:00:07]} 33. Ng4 {[%clk 0:00:16]}  Bc7 {[%clk 0:00:07]} 34. Nxf6+ {[%clk 0:00:15]}  gxf6 {[%clk 0:00:07]} 35. Qd3 {[%clk 0:00:09]}  Ng5 {[%clk 0:00:06]} 36. Qf5 {[%clk 0:00:09]}  Kg7 {[%clk 0:00:06]} 37. Bd3 {[%clk 0:00:07]}  Qg6 {[%clk 0:00:06]} 38. Bd2 {[%clk 0:00:04]}  Ne6 {[%clk 0:00:06]} 39. f4 {[%clk 0:00:03]}  Nxf4+ {[%clk 0:00:04]} 40. Bxf4 {[%clk 0:00:03]}  Bxf4 {[%clk 0:00:03]} 41. Qxg6+ {[%clk 0:00:03]}  fxg6 {[%clk 0:00:04]} 42. gxf4 {[%clk 0:00:04]}  f5 {[%clk 0:00:04]} 43. Kg3 {[%clk 0:00:04]}  Kf6 {[%clk 0:00:05]} 44. c4 {[%clk 0:00:05]}  Ke6 {[%clk 0:00:05]} 45. c5 {[%clk 0:00:04]}  a5 {[%clk 0:00:04]} 46. b3 {[%clk 0:00:04]}  g5 {[%clk 0:00:05]} 47. a3 {[%clk 0:00:04]}  g4 {[%clk 0:00:04]} 48. Kh4 {[%clk 0:00:04]}  Kf6 {[%clk 0:00:05]} 49. b4 {[%clk 0:00:05]}  axb4 {[%clk 0:00:04]} 50. axb4 {[%clk 0:00:05]}  Kg6 {[%clk 0:00:05]} 51. b5 {[%clk 0:00:06]}  Kf7 {[%clk 0:00:04]} 52. b6 {[%clk 0:00:06]}  Kg6 {[%clk 0:00:04]} 53. Kg3 {[%clk 0:00:06]}  Kf6 {[%clk 0:00:04]} 54. Ba6 {[%clk 0:00:07]}  Ke7 {[%clk 0:00:03]} 55. Bxb7 {[%clk 0:00:07]}  Kd7 {[%clk 0:00:04]} 56. Ba6 {[%clk 0:00:08]}  Kd8 {[%clk 0:00:04]} 57. Bd3 {[%clk 0:00:09]}  Kd7 {[%clk 0:00:04]} 58. Bxf5+ {[%clk 0:00:09]} 1-0


[Site "https://www.chess.com"]

[Event "Titled Tuesday Blitz September 28 2021"]
[White "Le, Tuan Minh"]
[Black "Seemann, Jakub"]
[WhiteFideId "12401153"]
[BlackFideId "21874697"]
[WhiteElo "2450"]
[BlackElo "1849"]
[Result "1-0"]
[Round "03"]
[TimeControl "180+1"]
[Date "2021.09.28"]
[WhiteClock "0:00:15"]
[BlackClock "0:00:01"]

1. d4 {[%clk 0:03:00]}  Nf6 {[%clk 0:02:59]} 2. Nf3 {[%clk 0:02:51]}  e6 {[%clk 0:02:59]} 3. Bf4 {[%clk 0:02:52]}  d5 {[%clk 0:02:59]} 4. e3 {[%clk 0:02:52]}  Bd6 {[%clk 0:03:00]} 5. Nbd2 {[%clk 0:02:51]}  O-O {[%clk 0:02:59]} 6. c3 {[%clk 0:02:52]}  c5 {[%clk 0:02:59]} 7. Bd3 {[%clk 0:02:52]}  Qc7 {[%clk 0:03:00]} 8. Bxd6 {[%clk 0:02:52]}  Qxd6 {[%clk 0:03:00]} 9. Ne5 {[%clk 0:02:53]}  b6 {[%clk 0:02:49]} 10. Qe2 {[%clk 0:02:52]}  a5 {[%clk 0:02:48]} 11. O-O {[%clk 0:02:53]}  Ba6 {[%clk 0:02:48]} 12. Bxa6 {[%clk 0:02:54]}  Nxa6 {[%clk 0:02:48]} 13. f4 {[%clk 0:02:54]}  Nb8 {[%clk 0:02:45]} 14. Rf3 {[%clk 0:02:53]}  Nbd7 {[%clk 0:02:41]} 15. Rh3 {[%clk 0:02:53]}  Rfc8 {[%clk 0:02:36]} 16. g4 {[%clk 0:02:49]}  Nf8 {[%clk 0:02:36]} 17. g5 {[%clk 0:02:47]}  Ne4 {[%clk 0:02:35]} 18. Nxe4 {[%clk 0:02:37]}  dxe4 {[%clk 0:02:36]} 19. Rf1 {[%clk 0:02:38]}  Ra7 {[%clk 0:02:21]} 20. Qg2 {[%clk 0:02:12]}  Qd5 {[%clk 0:02:02]} 21. c4 {[%clk 0:02:11]}  Qd6 {[%clk 0:01:48]} 22. Qxe4 {[%clk 0:02:10]}  cxd4 {[%clk 0:01:48]} 23. exd4 {[%clk 0:02:10]}  f6 {[%clk 0:01:48]} 24. gxf6 {[%clk 0:01:58]}  gxf6 {[%clk 0:01:49]} 25. Rg3+ {[%clk 0:01:58]}  Kh8 {[%clk 0:01:47]} 26. Ng4 {[%clk 0:01:38]}  f5 {[%clk 0:01:31]} 27. Qe5+ {[%clk 0:01:30]}  Qxe5 {[%clk 0:01:31]} 28. Nxe5 {[%clk 0:01:31]}  Ng6 {[%clk 0:01:32]} 29. b3 {[%clk 0:01:03]}  Nxe5 {[%clk 0:01:23]} 30. fxe5 {[%clk 0:01:04]}  b5 {[%clk 0:01:14]} 31. d5 {[%clk 0:01:04]}  bxc4 {[%clk 0:01:12]} 32. bxc4 {[%clk 0:01:05]}  Rxc4 {[%clk 0:01:09]} 33. Rb1 {[%clk 0:00:59]}  Rg4 {[%clk 0:00:45]} 34. d6 {[%clk 0:00:18]}  Rxg3+ {[%clk 0:00:29]} 35. hxg3 {[%clk 0:00:19]}  Rd7 {[%clk 0:00:18]} 36. Rc1 {[%clk 0:00:17]}  Kg8 {[%clk 0:00:13]} 37. Rc7 {[%clk 0:00:16]}  Rd8 {[%clk 0:00:13]} 38. Re7 {[%clk 0:00:17]}  Rb8 {[%clk 0:00:03]} 39. Rxe6 {[%clk 0:00:17]}  Kf8 {[%clk 0:00:03]} 40. Kf2 {[%clk 0:00:16]}  Rb2+ {[%clk 0:00:02]} 41. Ke3 {[%clk 0:00:16]}  Rb8 {[%clk 0:00:01]} 42. Kf4 {[%clk 0:00:15]} 1-0


[Site "https://www.chess.com"]

[Event "Titled Tuesday Blitz September 28 2021"]
[White "Lehtosaari, Mauri"]
[Black "Wong, Yinn Long"]
[WhiteFideId "501999"]
[BlackFideId "5707684"]
[WhiteElo "2447"]
[BlackElo "2016"]
[Result "1/2-1/2"]
[Round "03"]
[TimeControl "180+1"]
[Date "2021.09.28"]
[WhiteClock "0:00:14"]
[BlackClock "0:00:10"]

1. d4 {[%clk 0:03:00]}  Nf6 {[%clk 0:03:00]} 2. Nf3 {[%clk 0:03:01]}  e6 {[%clk 0:03:00]} 3. Bg5 {[%clk 0:03:01]}  c5 {[%clk 0:02:59]} 4. e3 {[%clk 0:03:01]}  b6 {[%clk 0:02:59]} 5. Nbd2 {[%clk 0:02:55]}  Bb7 {[%clk 0:02:59]} 6. c3 {[%clk 0:02:50]}  Be7 {[%clk 0:02:59]} 7. Bd3 {[%clk 0:02:50]}  cxd4 {[%clk 0:02:59]} 8. cxd4 {[%clk 0:02:42]}  h6 {[%clk 0:02:57]} 9. Bh4 {[%clk 0:02:36]}  O-O {[%clk 0:02:49]} 10. O-O {[%clk 0:02:35]}  d6 {[%clk 0:02:46]} 11. Rc1 {[%clk 0:02:33]}  Nbd7 {[%clk 0:02:46]} 12. Bb1 {[%clk 0:02:32]}  Nd5 {[%clk 0:02:38]} 13. Bxe7 {[%clk 0:02:31]}  Qxe7 {[%clk 0:02:39]} 14. a3 {[%clk 0:02:31]}  Rac8 {[%clk 0:02:38]} 15. Qb3 {[%clk 0:02:27]}  N5f6 {[%clk 0:02:30]} 16. h3 {[%clk 0:02:24]}  e5 {[%clk 0:02:21]} 17. Rfe1 {[%clk 0:02:00]}  g6 {[%clk 0:02:02]} 18. Qa4 {[%clk 0:01:32]}  a6 {[%clk 0:01:49]} 19. Ba2 {[%clk 0:01:17]}  Kg7 {[%clk 0:01:46]} 20. Qd1 {[%clk 0:01:01]}  Rxc1 {[%clk 0:01:27]} 21. Qxc1 {[%clk 0:01:01]}  Rc8 {[%clk 0:01:28]} 22. Qb1 {[%clk 0:00:59]}  b5 {[%clk 0:01:11]} 23. dxe5 {[%clk 0:00:53]}  dxe5 {[%clk 0:01:08]} 24. b4 {[%clk 0:00:52]}  Nb6 {[%clk 0:01:05]} 25. Qb2 {[%clk 0:00:46]}  Na4 {[%clk 0:01:03]} 26. Qa1 {[%clk 0:00:20]}  Nc3 {[%clk 0:00:56]} 27. Bb3 {[%clk 0:00:18]}  Qd6 {[%clk 0:00:52]} 28. Nf1 {[%clk 0:00:15]}  Bxf3 {[%clk 0:00:45]} 29. gxf3 {[%clk 0:00:16]}  Qd3 {[%clk 0:00:46]} 30. Ba2 {[%clk 0:00:11]}  Qf5 {[%clk 0:00:39]} 31. Kg2 {[%clk 0:00:10]}  e4 {[%clk 0:00:39]} 32. f4 {[%clk 0:00:08]}  Qh5 {[%clk 0:00:36]} 33. Nh2 {[%clk 0:00:08]}  Nxa2 {[%clk 0:00:13]} 34. Qxa2 {[%clk 0:00:08]}  Qf5 {[%clk 0:00:14]} 35. Qe2 {[%clk 0:00:09]}  g5 {[%clk 0:00:14]} 36. fxg5 {[%clk 0:00:09]}  hxg5 {[%clk 0:00:15]} 37. Ng4 {[%clk 0:00:09]}  Rh8 {[%clk 0:00:16]} 38. Rh1 {[%clk 0:00:08]}  Rh4 {[%clk 0:00:16]} 39. Kg3 {[%clk 0:00:07]}  Nxg4 {[%clk 0:00:13]} 40. hxg4 {[%clk 0:00:06]}  Qh7 {[%clk 0:00:10]} 41. Rxh4 {[%clk 0:00:07]}  Qxh4+ {[%clk 0:00:10]} 42. Kg2 {[%clk 0:00:07]}  Kg6 {[%clk 0:00:11]} 43. f3 {[%clk 0:00:07]}  Qh8 {[%clk 0:00:05]} 44. fxe4 {[%clk 0:00:07]}  Qe5 {[%clk 0:00:06]} 45. Qf3 {[%clk 0:00:08]}  Qb2+ {[%clk 0:00:06]} 46. Kh3 {[%clk 0:00:08]}  Qh8+ {[%clk 0:00:03]} 47. Kg3 {[%clk 0:00:08]}  Qe5+ {[%clk 0:00:03]} 48. Kg2 {[%clk 0:00:09]}  f6 {[%clk 0:00:04]} 49. Qf5+ {[%clk 0:00:09]}  Kf7 {[%clk 0:00:04]} 50. Qxe5 {[%clk 0:00:09]}  fxe5 {[%clk 0:00:05]} 51. Kf2 {[%clk 0:00:09]}  Ke6 {[%clk 0:00:06]} 52. Ke2 {[%clk 0:00:10]}  Kd6 {[%clk 0:00:07]} 53. Kd3 {[%clk 0:00:11]}  Kc6 {[%clk 0:00:08]} 54. Kc3 {[%clk 0:00:12]}  Kd6 {[%clk 0:00:08]} 55. Kb3 {[%clk 0:00:12]}  Kc6 {[%clk 0:00:09]} 56. Kc3 {[%clk 0:00:13]}  Kd6 {[%clk 0:00:09]} 57. Kd3 {[%clk 0:00:13]}  Kc6 {[%clk 0:00:10]} 58. Kc3 {[%clk 0:00:14]} 1/2-1/2


[Site "https://www.chess.com"]

[Event "Titled Tuesday Blitz September 28 2021"]
[White "Leitao, Rafael"]
[Black "Korobov, Anton"]
[WhiteFideId "2101246"]
[BlackFideId "14105730"]
[WhiteElo "2725"]
[BlackElo "2986"]
[Result "0-1"]
[Round "03"]
[TimeControl "180+1"]
[Date "2021.09.28"]
[WhiteClock "0:00:15"]
[BlackClock "0:00:18"]

1. c4 {[%clk 0:03:00]}  Nf6 {[%clk 0:02:59]} 2. Nc3 {[%clk 0:02:59]}  g6 {[%clk 0:02:59]} 3. g3 {[%clk 0:02:56]}  Bg7 {[%clk 0:02:58]} 4. Bg2 {[%clk 0:02:57]}  O-O {[%clk 0:02:59]} 5. Nf3 {[%clk 0:02:56]}  Nc6 {[%clk 0:03:00]} 6. d4 {[%clk 0:02:56]}  a6 {[%clk 0:03:00]} 7. O-O {[%clk 0:02:56]}  Rb8 {[%clk 0:03:00]} 8. Bf4 {[%clk 0:02:42]}  b5 {[%clk 0:02:48]} 9. cxb5 {[%clk 0:02:35]}  axb5 {[%clk 0:02:48]} 10. Rc1 {[%clk 0:02:35]}  b4 {[%clk 0:02:31]} 11. Na4 {[%clk 0:02:33]}  Nd5 {[%clk 0:02:31]} 12. Qd2 {[%clk 0:02:26]}  Nxf4 {[%clk 0:02:04]} 13. gxf4 {[%clk 0:02:26]}  e6 {[%clk 0:01:54]} 14. Nc5 {[%clk 0:02:20]}  Ne7 {[%clk 0:01:53]} 15. e3 {[%clk 0:02:10]}  d6 {[%clk 0:01:27]} 16. Nd3 {[%clk 0:02:07]}  b3 {[%clk 0:01:27]} 17. axb3 {[%clk 0:01:51]}  Rxb3 {[%clk 0:01:27]} 18. Qc2 {[%clk 0:01:51]}  Rb7 {[%clk 0:01:26]} 19. Ra1 {[%clk 0:01:32]}  Bd7 {[%clk 0:01:25]} 20. Rfc1 {[%clk 0:01:32]}  Nd5 {[%clk 0:01:24]} 21. Ra3 {[%clk 0:01:07]}  Qe7 {[%clk 0:01:12]} 22. e4 {[%clk 0:01:01]}  Nf6 {[%clk 0:01:07]} 23. Nd2 {[%clk 0:00:51]}  Nh5 {[%clk 0:01:05]} 24. Rc3 {[%clk 0:00:51]}  Bb5 {[%clk 0:00:54]} 25. f5 {[%clk 0:00:43]}  Bxd4 {[%clk 0:00:50]} 26. Rb3 {[%clk 0:00:38]}  Bxd3 {[%clk 0:00:35]} 27. Rxd3 {[%clk 0:00:32]}  Nf4 {[%clk 0:00:31]} 28. Rxd4 {[%clk 0:00:24]}  Ne2+ {[%clk 0:00:31]} 29. Kh1 {[%clk 0:00:25]}  Nxd4 {[%clk 0:00:32]} 30. Qd3 {[%clk 0:00:24]}  e5 {[%clk 0:00:32]} 31. Nc4 {[%clk 0:00:22]}  Kh8 {[%clk 0:00:27]} 32. f4 {[%clk 0:00:22]}  c6 {[%clk 0:00:25]} 33. fxe5 {[%clk 0:00:22]}  dxe5 {[%clk 0:00:25]} 34. Rf1 {[%clk 0:00:22]}  Rb3 {[%clk 0:00:25]} 35. Qd2 {[%clk 0:00:21]}  gxf5 {[%clk 0:00:25]} 36. exf5 {[%clk 0:00:21]}  Rg8 {[%clk 0:00:25]} 37. f6 {[%clk 0:00:21]}  Qe6 {[%clk 0:00:26]} 38. Qh6 {[%clk 0:00:20]}  Qg4 {[%clk 0:00:19]} 39. Rg1 {[%clk 0:00:17]}  Qg5 {[%clk 0:00:19]} 40. Qh3 {[%clk 0:00:15]}  Rxh3 {[%clk 0:00:18]} 0-1


[Site "https://www.chess.com"]

[Event "Titled Tuesday Blitz September 28 2021"]
[White "Lossi C., Cyrano Jose"]
[Black "Aradhya, Garg"]
[WhiteFideId "7301600"]
[BlackFideId "25006746"]
[WhiteElo "1811"]
[BlackElo "2146"]
[Result "0-1"]
[Round "03"]
[TimeControl "180+1"]
[Date "2021.09.28"]
[WhiteClock "0:00:17"]
[BlackClock "0:01:27"]

1. e4 {[%clk 0:03:00]}  e5 {[%clk 0:02:59]} 2. Nf3 {[%clk 0:03:00]}  Nc6 {[%clk 0:03:00]} 3. Bc4 {[%clk 0:03:00]}  Nf6 {[%clk 0:03:00]} 4. d3 {[%clk 0:03:00]}  Bc5 {[%clk 0:02:59]} 5. O-O {[%clk 0:03:00]}  O-O {[%clk 0:02:59]} 6. Re1 {[%clk 0:02:59]}  d6 {[%clk 0:02:57]} 7. h3 {[%clk 0:03:00]}  Na5 {[%clk 0:02:57]} 8. Bb3 {[%clk 0:02:59]}  Re8 {[%clk 0:02:55]} 9. Be3 {[%clk 0:02:54]}  Nxb3 {[%clk 0:02:54]} 10. axb3 {[%clk 0:02:54]}  a5 {[%clk 0:02:52]} 11. Bxc5 {[%clk 0:02:41]}  dxc5 {[%clk 0:02:52]} 12. Nbd2 {[%clk 0:02:38]}  b6 {[%clk 0:02:51]} 13. Nf1 {[%clk 0:02:35]}  Nh5 {[%clk 0:02:45]} 14. Ne3 {[%clk 0:02:27]}  Nf4 {[%clk 0:02:44]} 15. Nh2 {[%clk 0:02:14]}  Re6 {[%clk 0:02:27]} 16. Nf5 {[%clk 0:01:19]}  Rg6 {[%clk 0:02:25]} 17. g4 {[%clk 0:01:11]}  Nxh3+ {[%clk 0:02:22]} 18. Kf1 {[%clk 0:01:09]}  Bxf5 {[%clk 0:02:17]} 19. exf5 {[%clk 0:01:10]}  Rh6 {[%clk 0:02:17]} 20. Qf3 {[%clk 0:01:02]}  Ng5 {[%clk 0:02:07]} 21. Qg3 {[%clk 0:01:01]}  Qd5 {[%clk 0:02:05]} 22. f3 {[%clk 0:00:47]}  f6 {[%clk 0:01:55]} 23. Re2 {[%clk 0:00:45]}  Qd4 {[%clk 0:01:45]} 24. c3 {[%clk 0:00:43]}  Qxd3 {[%clk 0:01:44]} 25. Re1 {[%clk 0:00:26]}  Rh3 {[%clk 0:01:36]} 26. Qg2 {[%clk 0:00:24]}  Nxf3 {[%clk 0:01:36]} 27. Nxf3 {[%clk 0:00:21]}  Rxf3+ {[%clk 0:01:33]} 28. Kg1 {[%clk 0:00:20]}  Rd8 {[%clk 0:01:32]} 29. Kh2 {[%clk 0:00:17]}  h5 {[%clk 0:01:29]} 30. gxh5 {[%clk 0:00:17]}  Rxf5 {[%clk 0:01:27]} 31. Rg1 {[%clk 0:00:17]}  Rxh5+ {[%clk 0:01:27]} 0-1


[Site "https://www.chess.com"]

[Event "Titled Tuesday Blitz September 28 2021"]
[White "Lovkov, Roman"]
[Black "Bach, Ngoc Thuy Duong"]
[WhiteFideId "4157389"]
[BlackFideId "12408956"]
[WhiteElo "2371"]
[BlackElo "1896"]
[Result "1-0"]
[Round "03"]
[TimeControl "180+1"]
[Date "2021.09.28"]
[WhiteClock "0:00:13"]
[BlackClock "0:00:01"]

1. e4 {[%clk 0:03:00]}  c5 {[%clk 0:03:00]} 2. c3 {[%clk 0:03:00]}  Nf6 {[%clk 0:02:59]} 3. e5 {[%clk 0:03:00]}  Nd5 {[%clk 0:02:59]} 4. Nf3 {[%clk 0:03:01]}  Nc6 {[%clk 0:02:59]} 5. d4 {[%clk 0:03:02]}  cxd4 {[%clk 0:02:59]} 6. cxd4 {[%clk 0:03:02]}  d6 {[%clk 0:03:00]} 7. Bc4 {[%clk 0:03:03]}  Nb6 {[%clk 0:02:54]} 8. Bb5 {[%clk 0:03:03]}  d5 {[%clk 0:02:36]} 9. O-O {[%clk 0:03:02]}  a6 {[%clk 0:02:32]} 10. Bxc6+ {[%clk 0:03:01]}  bxc6 {[%clk 0:02:32]} 11. Qc2 {[%clk 0:02:58]}  Qc7 {[%clk 0:02:25]} 12. Nc3 {[%clk 0:02:57]}  Bg4 {[%clk 0:02:19]} 13. Ne1 {[%clk 0:02:57]}  e6 {[%clk 0:02:18]} 14. Nd3 {[%clk 0:02:48]}  Bf5 {[%clk 0:02:14]} 15. b3 {[%clk 0:02:42]}  Be7 {[%clk 0:02:11]} 16. Be3 {[%clk 0:02:43]}  O-O {[%clk 0:02:09]} 17. Qd2 {[%clk 0:02:33]}  a5 {[%clk 0:01:59]} 18. Nb2 {[%clk 0:02:27]}  Bb4 {[%clk 0:01:34]} 19. a3 {[%clk 0:02:26]}  Be7 {[%clk 0:01:34]} 20. Rfc1 {[%clk 0:02:24]}  Qb7 {[%clk 0:01:32]} 21. Ne2 {[%clk 0:02:05]}  Rfc8 {[%clk 0:01:28]} 22. Rc3 {[%clk 0:02:01]}  Nd7 {[%clk 0:01:27]} 23. Na4 {[%clk 0:01:59]}  Rab8 {[%clk 0:01:15]} 24. Ng3 {[%clk 0:01:49]}  Bg6 {[%clk 0:01:14]} 25. Bg5 {[%clk 0:01:50]}  Bxg5 {[%clk 0:01:09]} 26. Qxg5 {[%clk 0:01:51]}  c5 {[%clk 0:00:48]} 27. Nxc5 {[%clk 0:01:28]}  Nxc5 {[%clk 0:00:47]} 28. dxc5 {[%clk 0:01:29]}  d4 {[%clk 0:00:47]} 29. Rc4 {[%clk 0:01:13]}  Qxb3 {[%clk 0:00:46]} 30. Rxd4 {[%clk 0:01:11]}  Qc3 {[%clk 0:00:25]} 31. Rad1 {[%clk 0:01:10]}  h6 {[%clk 0:00:23]} 32. Qf4 {[%clk 0:01:03]}  Qxc5 {[%clk 0:00:23]} 33. h4 {[%clk 0:01:03]}  Bc2 {[%clk 0:00:19]} 34. R1d2 {[%clk 0:00:55]}  Qxa3 {[%clk 0:00:19]} 35. Rd7 {[%clk 0:00:55]}  Qf8 {[%clk 0:00:17]} 36. Ra7 {[%clk 0:00:48]}  Bg6 {[%clk 0:00:07]} 37. h5 {[%clk 0:00:47]}  Bf5 {[%clk 0:00:07]} 38. Nxf5 {[%clk 0:00:43]}  exf5 {[%clk 0:00:07]} 39. Rxa5 {[%clk 0:00:27]}  Qb4 {[%clk 0:00:05]} 40. Qxb4 {[%clk 0:00:21]}  Rxb4 {[%clk 0:00:06]} 41. g3 {[%clk 0:00:14]}  Re4 {[%clk 0:00:03]} 42. Rd7 {[%clk 0:00:12]}  Re8 {[%clk 0:00:01]} 43. Raa7 {[%clk 0:00:12]}  Rf8 {[%clk 0:00:01]} 44. Re7 {[%clk 0:00:12]}  f4 {[%clk 0:00:01]} 45. Kg2 {[%clk 0:00:12]}  fxg3 {[%clk 0:00:01]} 46. Kxg3 {[%clk 0:00:13]} 1-0


[Site "https://www.chess.com"]